[Event "Titled Tuesday Blitz March 08 Late 2022"]
[White "Golubka, Petro"]
[Black "Kim, Sergey"]
[WhiteFideId "14114224"]
[BlackFideId "13700570"]
[WhiteElo "2346"]
[BlackElo "2554"]
[Result "1-0"]
[Round "09"]
[TimeControl "180+1"]
[Date "2022.03.08"]
[WhiteClock "0:00:06"]
[BlackClock "0:00:07"]

1. d4 {[%clk 0:03:00]}  Nf6 {[%clk 0:02:59]} 2. Nf3 {[%clk 0:02:58]}  g6 {[%clk 0:02:59]} 3. Bg5 {[%clk 0:02:57]}  Bg7 {[%clk 0:02:59]} 4. Nbd2 {[%clk 0:02:54]}  d6 {[%clk 0:02:59]} 5. c3 {[%clk 0:02:54]}  c6 {[%clk 0:02:59]} 6. e4 {[%clk 0:02:52]}  Qc7 {[%clk 0:02:59]} 7. h3 {[%clk 0:02:44]}  Nbd7 {[%clk 0:02:58]} 8. a4 {[%clk 0:02:37]}  a5 {[%clk 0:02:57]} 9. Bc4 {[%clk 0:02:34]}  O-O {[%clk 0:02:56]} 10. Qe2 {[%clk 0:02:33]}  e5 {[%clk 0:02:56]} 11. dxe5 {[%clk 0:02:29]}  Nxe5 {[%clk 0:02:51]} 12. Nxe5 {[%clk 0:02:28]}  dxe5 {[%clk 0:02:51]} 13. O-O-O {[%clk 0:02:28]}  Re8 {[%clk 0:02:50]} 14. g4 {[%clk 0:02:27]}  Be6 {[%clk 0:02:49]} 15. f3 {[%clk 0:02:24]}  Nd7 {[%clk 0:02:45]} 16. h4 {[%clk 0:02:21]}  Nc5 {[%clk 0:02:44]} 17. Bxe6 {[%clk 0:02:19]}  Nxe6 {[%clk 0:02:40]} 18. Be3 {[%clk 0:02:17]}  Nf4 {[%clk 0:02:39]} 19. Qc4 {[%clk 0:02:10]}  Rac8 {[%clk 0:02:26]} 20. h5 {[%clk 0:02:07]}  b5 {[%clk 0:02:15]} 21. axb5 {[%clk 0:02:05]}  cxb5 {[%clk 0:02:15]} 22. Qxb5 {[%clk 0:01:55]}  Rb8 {[%clk 0:02:10]} 23. Qc4 {[%clk 0:01:53]}  Qb7 {[%clk 0:02:10]} 24. Qa2 {[%clk 0:01:50]}  Nd3+ {[%clk 0:02:05]} 25. Kc2 {[%clk 0:01:49]}  Nf4 {[%clk 0:01:32]} 26. hxg6 {[%clk 0:01:25]}  hxg6 {[%clk 0:01:32]} 27. Nc4 {[%clk 0:01:24]}  Re6 {[%clk 0:01:05]} 28. g5 {[%clk 0:00:57]}  Qa6 {[%clk 0:00:56]} 29. b3 {[%clk 0:00:36]}  Ra8 {[%clk 0:00:46]} 30. Qa4 {[%clk 0:00:34]}  Rc6 {[%clk 0:00:38]} 31. Rd7 {[%clk 0:00:30]}  Qc8 {[%clk 0:00:35]} 32. Rhd1 {[%clk 0:00:26]}  Ne6 {[%clk 0:00:32]} 33. R1d5 {[%clk 0:00:23]}  Qe8 {[%clk 0:00:28]} 34. Rb7 {[%clk 0:00:19]}  Nd8 {[%clk 0:00:24]} 35. Rbb5 {[%clk 0:00:18]}  Rac8 {[%clk 0:00:20]} 36. Rxa5 {[%clk 0:00:14]}  Qe6 {[%clk 0:00:18]} 37. Ra7 {[%clk 0:00:12]}  Qh3 {[%clk 0:00:17]} 38. Rxd8+ {[%clk 0:00:12]}  Kh7 {[%clk 0:00:16]} 39. Rxc8 {[%clk 0:00:12]}  Rxc8 {[%clk 0:00:15]} 40. Qd7 {[%clk 0:00:10]}  Qg2+ {[%clk 0:00:15]} 41. Bd2 {[%clk 0:00:10]}  Rf8 {[%clk 0:00:15]} 42. Qg4 {[%clk 0:00:09]}  Qe2 {[%clk 0:00:14]} 43. Qh3+ {[%clk 0:00:08]}  Kg8 {[%clk 0:00:14]} 44. Ra1 {[%clk 0:00:07]}  Rd8 {[%clk 0:00:13]} 45. Re1 {[%clk 0:00:06]}  Qd3+ {[%clk 0:00:13]} 46. Kb2 {[%clk 0:00:07]}  Ra8 {[%clk 0:00:13]} 47. Qf1 {[%clk 0:00:06]}  Qd7 {[%clk 0:00:12]} 48. Ra1 {[%clk 0:00:06]}  Rd8 {[%clk 0:00:11]} 49. Qe2 {[%clk 0:00:06]}  Qc7 {[%clk 0:00:11]} 50. Kc2 {[%clk 0:00:06]}  Qd7 {[%clk 0:00:11]} 51. Be3 {[%clk 0:00:06]}  Qc7 {[%clk 0:00:11]} 52. Bb6 {[%clk 0:00:06]}  Qd7 {[%clk 0:00:10]} 53. Bxd8 {[%clk 0:00:05]}  Qxd8 {[%clk 0:00:11]} 54. Qd2 {[%clk 0:00:05]}  Qc8 {[%clk 0:00:11]} 55. Rd1 {[%clk 0:00:06]}  Qh3 {[%clk 0:00:11]} 56. Qd8+ {[%clk 0:00:05]}  Kh7 {[%clk 0:00:11]} 57. Qd3 {[%clk 0:00:06]}  Kg8 {[%clk 0:00:11]} 58. Qe2 {[%clk 0:00:06]}  Qe6 {[%clk 0:00:10]} 59. b4 {[%clk 0:00:06]}  Bf8 {[%clk 0:00:10]} 60. Kb3 {[%clk 0:00:06]}  Qa6 {[%clk 0:00:09]} 61. Rd5 {[%clk 0:00:06]}  Qa1 {[%clk 0:00:08]} 62. Qc2 {[%clk 0:00:06]}  Qf1 {[%clk 0:00:08]} 63. b5 {[%clk 0:00:06]}  Qxf3 {[%clk 0:00:08]} 64. b6 {[%clk 0:00:06]}  Qf1 {[%clk 0:00:07]} 65. b7 {[%clk 0:00:06]} 1-0


[Site "https://www.chess.com"]

[Event "Titled Tuesday Blitz March 08 Late 2022"]
[White "Holt, Conrad"]
[Black "Indjic, Aleksandar"]
[WhiteFideId "2034387"]
[BlackFideId "911925"]
[WhiteElo "2586"]
[BlackElo "2616"]
[Result "0-1"]
[Round "09"]
[TimeControl "180+1"]
[Date "2022.03.08"]
[WhiteClock "0:00:01"]
[BlackClock "0:00:37"]

1. d4 {[%clk 0:02:50]}  Nf6 {[%clk 0:03:00]} 2. c4 {[%clk 0:02:50]}  e6 {[%clk 0:03:00]} 3. Nc3 {[%clk 0:02:51]}  d5 {[%clk 0:03:00]} 4. cxd5 {[%clk 0:02:50]}  exd5 {[%clk 0:03:01]} 5. Bg5 {[%clk 0:02:50]}  c6 {[%clk 0:03:00]} 6. e3 {[%clk 0:02:49]}  Nbd7 {[%clk 0:02:59]} 7. Bd3 {[%clk 0:02:48]}  Be7 {[%clk 0:02:59]} 8. Nge2 {[%clk 0:02:47]}  Nf8 {[%clk 0:02:59]} 9. Qc2 {[%clk 0:02:44]}  Ne6 {[%clk 0:02:58]} 10. Bh4 {[%clk 0:02:44]}  g6 {[%clk 0:02:54]} 11. O-O {[%clk 0:02:42]}  O-O {[%clk 0:02:53]} 12. f3 {[%clk 0:02:41]}  b5 {[%clk 0:02:51]} 13. Rad1 {[%clk 0:02:38]}  Bb7 {[%clk 0:02:41]} 14. h3 {[%clk 0:02:31]}  Nh5 {[%clk 0:02:38]} 15. Bf2 {[%clk 0:02:19]}  Rc8 {[%clk 0:02:30]} 16. g4 {[%clk 0:02:17]}  Nhg7 {[%clk 0:02:29]} 17. Ng3 {[%clk 0:02:04]}  b4 {[%clk 0:02:24]} 18. Na4 {[%clk 0:01:59]}  c5 {[%clk 0:02:24]} 19. Nxc5 {[%clk 0:01:59]}  Nxc5 {[%clk 0:02:23]} 20. dxc5 {[%clk 0:01:59]}  Bxc5 {[%clk 0:02:23]} 21. Qd2 {[%clk 0:01:58]}  Re8 {[%clk 0:02:15]} 22. Bb5 {[%clk 0:01:52]}  Re6 {[%clk 0:02:09]} 23. e4 {[%clk 0:01:50]}  Qb6 {[%clk 0:01:46]} 24. Bd7 {[%clk 0:01:46]}  Qd6 {[%clk 0:01:45]} 25. Bxc5 {[%clk 0:01:32]}  Qxg3+ {[%clk 0:01:44]} 26. Qg2 {[%clk 0:01:31]}  Qxg2+ {[%clk 0:01:44]} 27. Kxg2 {[%clk 0:01:32]}  Rxc5 {[%clk 0:01:43]} 28. Bxe6 {[%clk 0:01:32]}  Nxe6 {[%clk 0:01:43]} 29. exd5 {[%clk 0:01:32]}  Bxd5 {[%clk 0:01:42]} 30. Rc1 {[%clk 0:01:30]}  Ra5 {[%clk 0:01:41]} 31. a3 {[%clk 0:01:23]}  bxa3 {[%clk 0:01:40]} 32. bxa3 {[%clk 0:01:18]}  Rxa3 {[%clk 0:01:37]} 33. Ra1 {[%clk 0:01:18]}  Rb3 {[%clk 0:01:35]} 34. Rxa7 {[%clk 0:01:10]}  Ng5 {[%clk 0:01:32]} 35. Ra5 {[%clk 0:00:57]}  Bxf3+ {[%clk 0:01:31]} 36. Kh2 {[%clk 0:00:56]}  h6 {[%clk 0:01:29]} 37. Rfa1 {[%clk 0:00:39]}  Bc6 {[%clk 0:01:17]} 38. R1a3 {[%clk 0:00:34]}  Rb2+ {[%clk 0:01:16]} 39. Kg3 {[%clk 0:00:30]}  Rg2+ {[%clk 0:01:13]} 40. Kf4 {[%clk 0:00:30]}  Rf2+ {[%clk 0:01:12]} 41. Ke5 {[%clk 0:00:26]}  Kg7 {[%clk 0:01:10]} 42. h4 {[%clk 0:00:21]}  Re2+ {[%clk 0:01:02]} 43. Kd6 {[%clk 0:00:11]}  Re6+ {[%clk 0:01:01]} 44. Kc7 {[%clk 0:00:11]}  Nf3 {[%clk 0:00:58]} 45. Ra6 {[%clk 0:00:11]}  Bd5 {[%clk 0:00:55]} 46. Rxe6 {[%clk 0:00:11]}  fxe6 {[%clk 0:00:56]} 47. Kd6 {[%clk 0:00:10]}  Nxh4 {[%clk 0:00:50]} 48. Ke7 {[%clk 0:00:07]}  Nf3 {[%clk 0:00:50]} 49. Ra7 {[%clk 0:00:06]}  Ne5 {[%clk 0:00:50]} 50. g5 {[%clk 0:00:04]}  hxg5 {[%clk 0:00:49]} 51. Ra1 {[%clk 0:00:04]}  g4 {[%clk 0:00:49]} 52. Rg1 {[%clk 0:00:04]}  Bf3 {[%clk 0:00:48]} 53. Kxe6 {[%clk 0:00:03]}  Nd3 {[%clk 0:00:47]} 54. Kd6 {[%clk 0:00:02]}  Kf6 {[%clk 0:00:47]} 55. Rf1 {[%clk 0:00:02]}  Kf5 {[%clk 0:00:47]} 56. Rg1 {[%clk 0:00:01]}  Kf4 {[%clk 0:00:47]} 57. Ke6 {[%clk 0:00:01]}  g3 {[%clk 0:00:47]} 58. Kf6 {[%clk 0:00:01]}  Ne5 {[%clk 0:00:46]} 59. Kg7 {[%clk 0:00:01]}  g5 {[%clk 0:00:45]} 60. Kh6 {[%clk 0:00:01]}  g4 {[%clk 0:00:46]} 61. Kh5 {[%clk 0:00:02]}  g2 {[%clk 0:00:46]} 62. Kh4 {[%clk 0:00:02]}  Nd3 {[%clk 0:00:39]} 63. Ra1 {[%clk 0:00:01]}  Nf2 {[%clk 0:00:39]} 64. Ra4+ {[%clk 0:00:01]}  Be4 {[%clk 0:00:37]} 65. Ra1 {[%clk 0:00:01]}  Nh3 {[%clk 0:00:37]} 0-1


[Site "https://www.chess.com"]

[Event "Titled Tuesday Blitz March 08 Late 2022"]
[White "Ishbaev, Alibek"]
[Black "Kopczynski, Michal"]
[WhiteFideId "14205017"]
[BlackFideId "1124200"]
[WhiteElo "2357"]
[BlackElo "2523"]
[Result "0-1"]
[Round "09"]
[TimeControl "180+1"]
[Date "2022.03.09"]
[WhiteClock "0:00:35"]
[BlackClock "0:01:26"]

1. c4 {[%clk 0:02:57]}  d6 {[%clk 0:02:59]} 2. Nc3 {[%clk 0:02:57]}  e5 {[%clk 0:02:59]} 3. g3 {[%clk 0:02:57]}  f5 {[%clk 0:02:59]} 4. Bg2 {[%clk 0:02:57]}  Nf6 {[%clk 0:02:59]} 5. d4 {[%clk 0:02:57]}  exd4 {[%clk 0:02:58]} 6. Qxd4 {[%clk 0:02:57]}  Nc6 {[%clk 0:02:57]} 7. Qd2 {[%clk 0:02:46]}  Be7 {[%clk 0:02:56]} 8. Nf3 {[%clk 0:02:46]}  O-O {[%clk 0:02:56]} 9. O-O {[%clk 0:02:47]}  h6 {[%clk 0:02:55]} 10. b3 {[%clk 0:02:47]}  Be6 {[%clk 0:02:47]} 11. Bb2 {[%clk 0:02:47]}  Qd7 {[%clk 0:02:40]} 12. Nd4 {[%clk 0:02:45]}  Nxd4 {[%clk 0:02:33]} 13. Qxd4 {[%clk 0:02:46]}  c6 {[%clk 0:02:26]} 14. Rad1 {[%clk 0:02:45]}  Rad8 {[%clk 0:02:23]} 15. e4 {[%clk 0:02:45]}  f4 {[%clk 0:02:15]} 16. gxf4 {[%clk 0:02:40]}  Bh3 {[%clk 0:02:14]} 17. Rd3 {[%clk 0:02:29]}  Bxg2 {[%clk 0:02:09]} 18. Kxg2 {[%clk 0:02:29]}  Nh5 {[%clk 0:02:05]} 19. Ne2 {[%clk 0:02:29]}  Bf6 {[%clk 0:01:42]} 20. e5 {[%clk 0:02:28]}  Qg4+ {[%clk 0:01:40]} 21. Ng3 {[%clk 0:01:28]}  dxe5 {[%clk 0:01:33]} 22. Qxd8 {[%clk 0:00:42]}  Nxf4+ {[%clk 0:01:29]} 23. Kh1 {[%clk 0:00:38]}  Rxd8 {[%clk 0:01:26]} 24. Rxd8+ {[%clk 0:00:38]}  Bxd8 {[%clk 0:01:27]} 25. f3 {[%clk 0:00:36]}  Qh3 {[%clk 0:01:27]} 26. Rf2 {[%clk 0:00:35]}  Nd3 {[%clk 0:01:26]} 0-1


[Site "https://www.chess.com"]

[Event "Titled Tuesday Blitz March 08 Late 2022"]
[White "Iskusnyh, Sergei"]
[Black "Andersson, Bjorn 1971"]
[WhiteFideId "4120027"]
[BlackFideId "1702114"]
[WhiteElo "2492"]
[BlackElo "2207"]
[Result "1-0"]
[Round "09"]
[TimeControl "180+1"]
[Date "2022.03.09"]
[WhiteClock "0:00:15"]
[BlackClock "0:00:08"]

1. d4 {[%clk 0:02:58]}  c5 {[%clk 0:02:59]} 2. d5 {[%clk 0:02:58]}  d6 {[%clk 0:02:59]} 3. e4 {[%clk 0:02:57]}  g6 {[%clk 0:03:00]} 4. Bb5+ {[%clk 0:02:54]}  Bd7 {[%clk 0:03:00]} 5. a4 {[%clk 0:02:54]}  Bg7 {[%clk 0:03:00]} 6. Nf3 {[%clk 0:02:53]}  Na6 {[%clk 0:03:00]} 7. O-O {[%clk 0:02:52]}  Nc7 {[%clk 0:02:59]} 8. Be2 {[%clk 0:02:50]}  a6 {[%clk 0:02:59]} 9. a5 {[%clk 0:02:43]}  Nf6 {[%clk 0:02:57]} 10. Nbd2 {[%clk 0:02:39]}  O-O {[%clk 0:02:51]} 11. Re1 {[%clk 0:02:36]}  Rb8 {[%clk 0:02:44]} 12. Bf1 {[%clk 0:02:31]}  b5 {[%clk 0:02:44]} 13. axb6 {[%clk 0:02:30]}  Rxb6 {[%clk 0:02:44]} 14. c3 {[%clk 0:02:30]}  Bb5 {[%clk 0:02:40]} 15. Nc4 {[%clk 0:02:27]}  Bxc4 {[%clk 0:02:38]} 16. Bxc4 {[%clk 0:02:27]}  Nd7 {[%clk 0:02:38]} 17. Bf1 {[%clk 0:02:15]}  Ne5 {[%clk 0:02:36]} 18. Nd2 {[%clk 0:02:15]}  e6 {[%clk 0:02:22]} 19. f4 {[%clk 0:02:02]}  Nd7 {[%clk 0:02:19]} 20. Nc4 {[%clk 0:02:02]}  exd5 {[%clk 0:02:18]} 21. exd5 {[%clk 0:01:56]}  Rb8 {[%clk 0:01:59]} 22. Na5 {[%clk 0:01:55]}  Qc8 {[%clk 0:01:37]} 23. Nc6 {[%clk 0:01:53]}  Bf6 {[%clk 0:01:22]} 24. Nxb8 {[%clk 0:01:48]}  Qxb8 {[%clk 0:01:22]} 25. Qa4 {[%clk 0:01:38]}  Nb6 {[%clk 0:01:17]} 26. Qc6 {[%clk 0:01:36]}  Ncxd5 {[%clk 0:01:11]} 27. Rxa6 {[%clk 0:01:32]}  Rc8 {[%clk 0:01:01]} 28. Qb5 {[%clk 0:01:30]}  Bd8 {[%clk 0:00:55]} 29. f5 {[%clk 0:01:18]}  Kg7 {[%clk 0:00:50]} 30. Qd3 {[%clk 0:00:39]}  Qb7 {[%clk 0:00:40]} 31. Qh3 {[%clk 0:00:38]}  h5 {[%clk 0:00:29]} 32. fxg6 {[%clk 0:00:36]}  fxg6 {[%clk 0:00:29]} 33. Qf3 {[%clk 0:00:32]}  Bf6 {[%clk 0:00:22]} 34. Rxb6 {[%clk 0:00:32]}  Qxb6 {[%clk 0:00:18]} 35. Qxd5 {[%clk 0:00:32]}  Rf8 {[%clk 0:00:18]} 36. Bc4 {[%clk 0:00:30]}  h4 {[%clk 0:00:16]} 37. h3 {[%clk 0:00:30]}  Qd8 {[%clk 0:00:15]} 38. Qe6 {[%clk 0:00:29]}  Be5 {[%clk 0:00:15]} 39. Qg4 {[%clk 0:00:28]}  Qf6 {[%clk 0:00:15]} 40. Be3 {[%clk 0:00:27]}  Bg3 {[%clk 0:00:14]} 41. Rf1 {[%clk 0:00:27]}  Qe5 {[%clk 0:00:13]} 42. Qe2 {[%clk 0:00:20]}  Rxf1+ {[%clk 0:00:13]} 43. Kxf1 {[%clk 0:00:20]}  Qf5+ {[%clk 0:00:12]} 44. Kg1 {[%clk 0:00:19]}  Qb1+ {[%clk 0:00:12]} 45. Qf1 {[%clk 0:00:18]}  Qxb2 {[%clk 0:00:12]} 46. Qc1 {[%clk 0:00:17]}  Qxc1+ {[%clk 0:00:08]} 47. Bxc1 {[%clk 0:00:16]}  Be5 {[%clk 0:00:09]} 48. Bd2 {[%clk 0:00:16]}  Kf6 {[%clk 0:00:09]} 49. Kf1 {[%clk 0:00:16]}  g5 {[%clk 0:00:10]} 50. Ke2 {[%clk 0:00:16]}  Kf5 {[%clk 0:00:11]} 51. Bd3+ {[%clk 0:00:15]}  Kf6 {[%clk 0:00:11]} 52. Be4 {[%clk 0:00:14]}  Ke6 {[%clk 0:00:10]} 53. c4 {[%clk 0:00:15]}  Kf6 {[%clk 0:00:10]} 54. Kf3 {[%clk 0:00:15]}  Bg3 {[%clk 0:00:07]} 55. Kg4 {[%clk 0:00:15]}  Ke5 {[%clk 0:00:07]} 56. Bd5 {[%clk 0:00:15]}  Kd4 {[%clk 0:00:07]} 57. Bxg5 {[%clk 0:00:15]}  Kd3 {[%clk 0:00:08]} 58. Bxh4 {[%clk 0:00:15]} 1-0


[Site "https://www.chess.com"]

[Event "Titled Tuesday Blitz March 08 Late 2022"]
[White "Jaferian, Koosha"]
[Black "Kushko, Dmitriy"]
[WhiteFideId "12507440"]
[BlackFideId "14162261"]
[WhiteElo "2030"]
[BlackElo "2225"]
[Result "1/2-1/2"]
[Round "09"]
[TimeControl "180+1"]
[Date "2022.03.08"]
[WhiteClock "0:00:58"]
[BlackClock "0:00:07"]

1. Nf3 {[%clk 0:03:00]}  g6 {[%clk 0:02:58]} 2. b3 {[%clk 0:03:00]}  Bg7 {[%clk 0:02:58]} 3. d4 {[%clk 0:03:01]}  Nf6 {[%clk 0:02:54]} 4. Bb2 {[%clk 0:02:57]}  O-O {[%clk 0:02:54]} 5. g3 {[%clk 0:02:58]}  d5 {[%clk 0:02:49]} 6. Bg2 {[%clk 0:02:58]}  c6 {[%clk 0:02:49]} 7. c4 {[%clk 0:02:58]}  Ne4 {[%clk 0:02:43]} 8. O-O {[%clk 0:02:58]}  Bf5 {[%clk 0:02:41]} 9. e3 {[%clk 0:02:58]}  Nd7 {[%clk 0:02:35]} 10. Nh4 {[%clk 0:02:57]}  Be6 {[%clk 0:02:19]} 11. Qe2 {[%clk 0:02:55]}  Nd6 {[%clk 0:02:12]} 12. Nd2 {[%clk 0:02:55]}  f5 {[%clk 0:02:04]} 13. Nhf3 {[%clk 0:02:55]}  h6 {[%clk 0:01:52]} 14. Ne5 {[%clk 0:02:52]}  Kh7 {[%clk 0:01:48]} 15. f4 {[%clk 0:02:48]}  Ne4 {[%clk 0:01:42]} 16. Rfd1 {[%clk 0:02:44]}  Nxd2 {[%clk 0:01:36]} 17. Rxd2 {[%clk 0:02:44]}  Nf6 {[%clk 0:01:36]} 18. Rc1 {[%clk 0:02:41]}  Ne4 {[%clk 0:01:35]} 19. Rdd1 {[%clk 0:02:41]}  Rc8 {[%clk 0:01:21]} 20. Nd3 {[%clk 0:02:34]}  b6 {[%clk 0:01:14]} 21. Nf2 {[%clk 0:02:34]}  Nf6 {[%clk 0:01:11]} 22. h3 {[%clk 0:02:32]}  Qd7 {[%clk 0:01:11]} 23. g4 {[%clk 0:02:33]}  fxg4 {[%clk 0:01:11]} 24. hxg4 {[%clk 0:02:23]}  Nxg4 {[%clk 0:01:10]} 25. Bf3 {[%clk 0:02:24]}  Nxf2 {[%clk 0:01:09]} 26. Kxf2 {[%clk 0:02:25]}  Bf5 {[%clk 0:01:07]} 27. Rh1 {[%clk 0:02:22]}  Qe6 {[%clk 0:01:04]} 28. Rcg1 {[%clk 0:02:22]}  Rcd8 {[%clk 0:00:56]} 29. cxd5 {[%clk 0:02:21]}  cxd5 {[%clk 0:00:56]} 30. Bg4 {[%clk 0:02:05]}  Rc8 {[%clk 0:00:54]} 31. Bxf5 {[%clk 0:02:00]}  Qxf5 {[%clk 0:00:54]} 32. Rc1 {[%clk 0:01:55]}  Qe4 {[%clk 0:00:50]} 33. Rxc8 {[%clk 0:01:49]}  Rxc8 {[%clk 0:00:50]} 34. Rc1 {[%clk 0:01:50]}  Rxc1 {[%clk 0:00:49]} 35. Bxc1 {[%clk 0:01:51]}  Bf6 {[%clk 0:00:32]} 36. Ke1 {[%clk 0:01:33]}  h5 {[%clk 0:00:30]} 37. Kd2 {[%clk 0:01:26]}  Qb1 {[%clk 0:00:27]} 38. Qa6 {[%clk 0:01:20]}  h4 {[%clk 0:00:21]} 39. Qxa7 {[%clk 0:01:05]}  h3 {[%clk 0:00:21]} 40. Qd7 {[%clk 0:01:05]}  Qxa2+ {[%clk 0:00:20]} 41. Kc3 {[%clk 0:01:05]}  Qg2 {[%clk 0:00:19]} 42. Ba3 {[%clk 0:00:59]}  h2 {[%clk 0:00:16]} 43. Bxe7 {[%clk 0:01:00]}  Bxe7 {[%clk 0:00:03]} 44. Qxe7+ {[%clk 0:01:00]}  Kh6 {[%clk 0:00:04]} 45. Qh4+ {[%clk 0:01:00]}  Kg7 {[%clk 0:00:05]} 46. Qe7+ {[%clk 0:01:01]}  Kg8 {[%clk 0:00:05]} 47. Qe8+ {[%clk 0:01:01]}  Kg7 {[%clk 0:00:06]} 48. Qe7+ {[%clk 0:01:01]}  Kh6 {[%clk 0:00:06]} 49. Qh4+ {[%clk 0:01:00]}  Kg7 {[%clk 0:00:07]} 50. Qe7+ {[%clk 0:00:58]} 1/2-1/2


[Site "https://www.chess.com"]

[Event "Titled Tuesday Blitz March 08 Late 2022"]
[White "Khabinets, Ivan"]
[Black "Romero Ruscalleda, Josep"]
[WhiteFideId "14115980"]
[BlackFideId "2231859"]
[WhiteElo "2515"]
[BlackElo "2344"]
[Result "1-0"]
[Round "09"]
[TimeControl "180+1"]
[Date "2022.03.09"]
[WhiteClock "0:01:23"]
[BlackClock "0:00:13"]

1. Nf3 {[%clk 0:03:00]}  g6 {[%clk 0:03:00]} 2. e4 {[%clk 0:02:56]}  Bg7 {[%clk 0:03:00]} 3. d4 {[%clk 0:02:55]}  d6 {[%clk 0:03:01]} 4. Bc4 {[%clk 0:02:55]}  e6 {[%clk 0:03:00]} 5. Qe2 {[%clk 0:02:56]}  Ne7 {[%clk 0:02:58]} 6. Bb3 {[%clk 0:02:56]}  Nd7 {[%clk 0:02:56]} 7. O-O {[%clk 0:02:56]}  O-O {[%clk 0:02:56]} 8. c3 {[%clk 0:02:56]}  b6 {[%clk 0:02:54]} 9. a4 {[%clk 0:02:54]}  a5 {[%clk 0:02:53]} 10. Re1 {[%clk 0:02:54]}  Nf6 {[%clk 0:02:48]} 11. e5 {[%clk 0:02:50]}  Nfd5 {[%clk 0:02:42]} 12. exd6 {[%clk 0:02:48]}  Qxd6 {[%clk 0:02:40]} 13. Nbd2 {[%clk 0:02:46]}  Ba6 {[%clk 0:02:32]} 14. Bc4 {[%clk 0:02:34]}  Nf4 {[%clk 0:02:03]} 15. Qf1 {[%clk 0:02:32]}  Bb7 {[%clk 0:01:53]} 16. Ne4 {[%clk 0:02:32]}  Bxe4 {[%clk 0:01:50]} 17. Rxe4 {[%clk 0:02:33]}  Nfd5 {[%clk 0:01:43]} 18. Bg5 {[%clk 0:02:26]}  Rfe8 {[%clk 0:01:24]} 19. Rae1 {[%clk 0:02:23]}  c6 {[%clk 0:01:18]} 20. Bh4 {[%clk 0:02:18]}  Nf5 {[%clk 0:01:15]} 21. Bg5 {[%clk 0:02:11]}  h6 {[%clk 0:01:10]} 22. Bc1 {[%clk 0:02:10]}  Kh7 {[%clk 0:01:10]} 23. Ne5 {[%clk 0:02:10]}  Nf6 {[%clk 0:01:01]} 24. Nxf7 {[%clk 0:01:40]}  Qc7 {[%clk 0:00:51]} 25. Rxe6 {[%clk 0:01:39]}  Rxe6 {[%clk 0:00:20]} 26. Bxe6 {[%clk 0:01:38]}  Ng4 {[%clk 0:00:17]} 27. g3 {[%clk 0:01:32]}  Rf8 {[%clk 0:00:16]} 28. Bf4 {[%clk 0:01:26]}  Qe7 {[%clk 0:00:13]} 29. Bxf5 {[%clk 0:01:24]}  Qxf7 {[%clk 0:00:13]} 30. Bxg4 {[%clk 0:01:23]} 1-0


[Site "https://www.chess.com"]

[Event "Titled Tuesday Blitz March 08 Late 2022"]
[White "Koellner, Ruben Gideon"]
[Black "Ibarra Jerez, Jose Carlos"]
[WhiteFideId "12993093"]
[BlackFideId "2226332"]
[WhiteElo "2464"]
[BlackElo "2626"]
[Result "0-1"]
[Round "09"]
[TimeControl "180+1"]
[Date "2022.03.08"]
[WhiteClock "0:00:12"]
[BlackClock "0:00:12"]

1. d4 {[%clk 0:03:00]}  Nf6 {[%clk 0:02:59]} 2. Bg5 {[%clk 0:02:58]}  d5 {[%clk 0:02:58]} 3. e3 {[%clk 0:02:56]}  c5 {[%clk 0:02:58]} 4. Bxf6 {[%clk 0:02:56]}  gxf6 {[%clk 0:02:57]} 5. dxc5 {[%clk 0:02:57]}  e6 {[%clk 0:02:57]} 6. c4 {[%clk 0:02:58]}  dxc4 {[%clk 0:02:56]} 7. Nd2 {[%clk 0:02:58]}  c3 {[%clk 0:02:55]} 8. bxc3 {[%clk 0:02:59]}  Bxc5 {[%clk 0:02:55]} 9. Qh5 {[%clk 0:02:56]}  f5 {[%clk 0:02:52]} 10. Ngf3 {[%clk 0:02:55]}  Qf6 {[%clk 0:02:49]} 11. Rb1 {[%clk 0:02:44]}  O-O {[%clk 0:02:32]} 12. Be2 {[%clk 0:02:29]}  Nc6 {[%clk 0:02:25]} 13. O-O {[%clk 0:02:26]}  Qg6 {[%clk 0:02:21]} 14. Qh4 {[%clk 0:02:18]}  b6 {[%clk 0:02:05]} 15. e4 {[%clk 0:02:15]}  fxe4 {[%clk 0:01:50]} 16. Nxe4 {[%clk 0:01:59]}  Be7 {[%clk 0:01:49]} 17. Qf4 {[%clk 0:01:58]}  Bb7 {[%clk 0:01:18]} 18. Ng3 {[%clk 0:01:48]}  Rac8 {[%clk 0:01:08]} 19. Rfd1 {[%clk 0:01:40]}  Rfd8 {[%clk 0:01:08]} 20. h4 {[%clk 0:01:28]}  h6 {[%clk 0:01:01]} 21. h5 {[%clk 0:01:27]}  Qf6 {[%clk 0:00:51]} 22. Qe3 {[%clk 0:01:12]}  Bc5 {[%clk 0:00:49]} 23. Ne4 {[%clk 0:00:52]}  Bxe3 {[%clk 0:00:33]} 24. Nxf6+ {[%clk 0:00:51]}  Kg7 {[%clk 0:00:34]} 25. fxe3 {[%clk 0:00:27]}  Kxf6 {[%clk 0:00:34]} 26. Kf2 {[%clk 0:00:24]}  Ne7 {[%clk 0:00:29]} 27. c4 {[%clk 0:00:20]}  Nf5 {[%clk 0:00:28]} 28. g4 {[%clk 0:00:19]}  Nd6 {[%clk 0:00:28]} 29. Rbc1 {[%clk 0:00:19]}  Ne4+ {[%clk 0:00:26]} 30. Kg2 {[%clk 0:00:18]}  Rg8 {[%clk 0:00:23]} 31. Rd7 {[%clk 0:00:06]}  Rxg4+ {[%clk 0:00:21]} 32. Kh2 {[%clk 0:00:05]}  Rcg8 {[%clk 0:00:11]} 33. Bf1 {[%clk 0:00:04]}  Nc5 {[%clk 0:00:09]} 34. Rxb7 {[%clk 0:00:02]}  Nxb7 {[%clk 0:00:09]} 35. Bh3 {[%clk 0:00:03]}  Rg3 {[%clk 0:00:08]} 36. Rf1 {[%clk 0:00:02]}  Ke7 {[%clk 0:00:08]} 37. Ne5 {[%clk 0:00:02]}  Nd6 {[%clk 0:00:08]} 38. Rf3 {[%clk 0:00:01]}  Rxf3 {[%clk 0:00:08]} 39. Nxf3 {[%clk 0:00:02]}  Nxc4 {[%clk 0:00:08]} 40. e4 {[%clk 0:00:03]}  Nd6 {[%clk 0:00:08]} 41. e5 {[%clk 0:00:03]}  Nf5 {[%clk 0:00:07]} 42. Bxf5 {[%clk 0:00:03]}  exf5 {[%clk 0:00:08]} 43. Nh4 {[%clk 0:00:04]}  Ke6 {[%clk 0:00:08]} 44. Nf3 {[%clk 0:00:05]}  Rg4 {[%clk 0:00:07]} 45. Kh3 {[%clk 0:00:05]}  Re4 {[%clk 0:00:07]} 46. Kg3 {[%clk 0:00:05]}  Re3 {[%clk 0:00:07]} 47. Kf4 {[%clk 0:00:05]}  Rxf3+ {[%clk 0:00:08]} 48. Kxf3 {[%clk 0:00:05]}  Kxe5 {[%clk 0:00:09]} 49. Ke3 {[%clk 0:00:06]}  f4+ {[%clk 0:00:09]} 50. Kf3 {[%clk 0:00:07]}  Kf5 {[%clk 0:00:10]} 51. a3 {[%clk 0:00:07]}  b5 {[%clk 0:00:10]} 52. Kf2 {[%clk 0:00:08]}  Kg4 {[%clk 0:00:10]} 53. Kg2 {[%clk 0:00:08]}  Kxh5 {[%clk 0:00:10]} 54. Kf3 {[%clk 0:00:09]}  Kg5 {[%clk 0:00:11]} 55. Kf2 {[%clk 0:00:10]}  Kg4 {[%clk 0:00:11]} 56. Kg2 {[%clk 0:00:11]}  h5 {[%clk 0:00:12]} 57. Kf2 {[%clk 0:00:12]}  h4 {[%clk 0:00:13]} 58. a4 {[%clk 0:00:12]}  bxa4 {[%clk 0:00:12]} 0-1


[Site "https://www.chess.com"]